bitfinex/quotes_BTCUSD_20251209
["timestamp","ask_amount","ask_price","bid_price","bid_amount"]
[1765247622740,0.23792756,90251.0,90250.0,0.18529651]
[1765247622942,0.23792756,90251.0,90250.0,0.20728242]
[1765247623167,0.27853756,90251.0,90250.0,0.18529651]
[1765247623737,0.27653756,90251.0,90250.0,0.00152651]
[1765247624162,0.27253756,90251.0,90250.0,0.00152651]
[1765247624493,0.27453756,90251.0,90250.0,0.00152651]
[1765247625073,0.27553756,90251.0,90250.0,0.00152651]
[1765247625540,0.27453756,90251.0,90250.0,0.00152651]
[1765247625914,0.29753756,90251.0,90250.0,0.00152651]
[1765247627472,0.27553756,90251.0,90250.0,0.00152651]
[1765247627617,0.29753756,90251.0,90250.0,0.00152651]
[1765247627972,0.27553756,90251.0,90250.0,0.00152651]
[1765247630215,0.23492756,90251.0,90250.0,0.00152651]
[1765247630412,0.25060756,90251.0,90250.0,0.00152651]
[1765247632651,0.23492756,90251.0,90250.0,0.33598842]
[1765247633232,0.22460419,90251.0,90250.0,0.33598842]
[1765247634614,0.003,90251.0,90250.0,0.33598842]
[1765247635017,0.003,90251.0,90250.0,0.33760129]
[1765247635348,0.003,90251.0,90250.0,0.66060129]
[1765247635644,0.003,90251.0,90250.0,0.74343806]
[1765247636219,0.002,90251.0,90250.0,0.74343806]
[1765247636420,0.002,90251.0,90250.0,0.8618516]
[1765247636584,0.002,90251.0,90250.0,0.80596105]
[1765247636791,0.01107885,90262.0,90261.0,0.02198591]
[1765247637030,0.01107885,90262.0,90261.0,2.02359878]
[1765247637390,0.01107873,90263.0,90262.0,0.02198591]
[1765247638540,0.01107873,90263.0,90262.0,0.02298591]
[1765247638734,0.01107873,90263.0,90262.0,0.02498591]
[1765247639157,0.01107873,90263.0,90262.0,0.02659878]
[1765247639541,0.44297446,90299.0,90262.0,0.02659878]
[1765247639542,0.01107738,90274.0,90273.0,0.02198591]
[1765247639745,0.02142847,90274.0,90273.0,0.02198591]
[1765247640128,0.01107738,90274.0,90273.0,0.02198591]
[1765247640725,0.01107701,90277.0,90274.0,0.02198591]
[1765247640986,0.01107701,90277.0,90274.0,0.03306329]
[1765247641216,0.24397265,90279.0,90274.0,0.03306329]
[1765247641370,0.23261783,90277.0,90274.0,0.02198591]
[1765247641571,0.01107701,90277.0,90274.0,0.02359878]
[1765247641751,0.01107689,90278.0,90274.0,0.03467616]
[1765247641954,0.01617,90275.0,90274.0,0.02359878]
[1765247642157,0.01617,90275.0,90274.0,0.00161287]
[1765247642455,0.04044,90275.0,90274.0,0.00161287]
[1765247642792,0.22155509,90271.0,90270.0,0.666211]
[1765247643005,0.23772509,90271.0,90270.0,0.666211]
[1765247643149,0.26199509,90271.0,90270.0,0.666211]
[1765247646618,0.26199509,90271.0,90270.0,0.251507]
[1765247646908,0.22159191,90256.0,90253.0,0.03954106]
[1765247647126,0.01107971,90255.0,90254.0,0.765174]
[1765247647288,0.01107971,90255.0,90254.0,0.737862]
[1765247647498,0.01107971,90255.0,90253.0,0.10637987]
[1765247647499,0.22159682,90254.0,90253.0,0.10637987]
[1765247647701,0.23776682,90254.0,90253.0,0.10637987]
[1765247648021,0.26203682,90254.0,90253.0,0.10637987]
[1765247648379,0.04044,90254.0,90253.0,0.10637987]
[1765247648580,0.01617,90254.0,90253.0,0.10637987]
[1765247648764,0.01184,90257.0,90255.0,1.064209]
[1765247648968,0.01184,90257.0,90255.0,1.026511]
[1765247649187,0.01184,90257.0,90256.0,0.00104459]
[1765247649419,0.01184,90257.0,90256.0,0.2226365]
[1765247649618,0.02801,90257.0,90256.0,0.2226365]
[1765247650052,0.05228,90257.0,90256.0,0.00104459]
[1765247650202,0.27386946,90257.0,90256.0,0.00104459]
[1765247650906,0.27486946,90257.0,90256.0,0.00104459]
[1765247651525,0.27386946,90257.0,90256.0,0.00104459]
[1765247651735,0.27486946,90257.0,90256.0,0.00104459]
[1765247651935,0.27586946,90257.0,90256.0,0.00104459]
[1765247659456,0.25159946,90257.0,90256.0,0.00104459]
[1765247660259,0.27514946,90257.0,90256.0,0.00104459]
[1765247661219,0.22160419,90251.0,90250.0,0.00030276]
[1765247661433,0.24911419,90251.0,90250.0,0.00030276]
[1765247661635,0.27266419,90251.0,90250.0,0.00030276]
[1765247663211,0.27266419,90251.0,90250.0,0.00330276]
[1765247664050,0.27266419,90251.0,90250.0,0.00030276]
[1765247664565,0.27266419,90251.0,90250.0,0.00130276]
[1765247668836,0.02751,90251.0,90250.0,0.00130276]
[1765247669213,0.27266419,90251.0,90250.0,0.00130276]
[1765247671397,0.05106,90251.0,90250.0,0.00130276]
[1765247673583,0.02751,90251.0,90250.0,0.00130276]
[1765247673793,0.01184,90257.0,90251.0,0.22160419]
[1765247674572,0.01603,90252.0,90250.0,0.08413953]
[1765247674794,0.01148,90251.0,90250.0,0.08413953]
[1765247675607,0.01148,90251.0,90250.0,0.08313953]
[1765247676639,0.01148,90251.0,90250.0,0.08413953]
[1765247677137,0.01148,90251.0,90250.0,0.0857524]
[1765247677284,0.01148,90251.0,90250.0,0.0847524]
[1765247678100,0.01148,90251.0,90250.0,0.0857524]
[1765247679188,0.01148,90251.0,90250.0,0.0847524]
[1765247679383,0.01348,90251.0,90250.0,0.0847524]
[1765247679593,0.01748,90251.0,90250.0,0.0847524]
[1765247680210,0.006,90251.0,90250.0,0.10803756]
[1765247680429,0.006,90251.0,90250.0,0.10673831]
[1765247681546,0.006,90251.0,90250.0,0.97221431]
[1765247681935,0.006,90251.0,90250.0,1.01175537]
[1765247682930,0.006,90251.0,90250.0,0.64197437]
[1765247682931,0.02225,90251.0,90250.0,0.64197437]
[1765247683563,0.02225,90251.0,90250.0,0.50901837]
[1765247683895,0.26675419,90251.0,90250.0,0.2211474]
[1765247684971,0.02225,90251.0,90250.0,0.2211474]
[1765247685172,0.006,90251.0,90250.0,0.28267437]
[1765247687301,0.006,90251.0,90250.0,0.28281322]
[1765247687620,0.006,90251.0,90250.0,0.24313331]
[1765247687816,0.006,90251.0,90250.0,0.28281122]
[1765247688635,0.006,90251.0,90250.0,0.2828112]
[1765247689986,0.02225,90251.0,90250.0,0.2828112]
[1765247690202,0.04515,90251.0,90250.0,0.26082529]
[1765247690609,0.006,90251.0,90250.0,0.2211474]
[1765247690943,0.006,90251.0,90250.0,0.26082529]
[1765247691894,0.02225,90251.0,90250.0,0.2211474]
[1765247692792,0.006,90251.0,90250.0,0.2211474]
[1765247694405,0.04515,90251.0,90250.0,0.2211474]
[1765247694838,0.02225,90251.0,90250.0,0.26083702]
[1765247695278,0.04515,90251.0,90250.0,0.26083702]
[1765247696120,0.02225,90251.0,90250.0,0.26083702]
[1765247696277,0.006,90251.0,90250.0,0.26083702]
[1765247696452,0.006,90251.0,90250.0,0.2211474]
[1765247697088,0.006,90251.0,90250.0,0.24313331]
[1765247698930,0.006,90251.0,90250.0,0.56613331]
[1765247701146,0.006,90251.0,90250.0,0.6286563]
[1765247701355,0.006,90251.0,90250.0,0.68775307]
[1765247701579,0.01215,90287.0,90284.0,0.01107615]
[1765247701777,0.01215,90287.0,90286.0,0.08283677]
[1765247701972,0.01215,90287.0,90286.0,0.08444964]
[1765247702388,0.0509,90287.0,90286.0,0.08444964]
[1765247702744,0.0542862,90287.0,90286.0,0.08444964]
[1765247702945,0.0512862,90287.0,90286.0,0.08444964]
[1765247703349,0.0552862,90287.0,90286.0,0.08444964]
[1765247703938,0.0317462,90287.0,90286.0,0.08444964]
[1765247704758,0.0337462,90287.0,90286.0,0.08444964]
[1765247704924,0.0063862,90287.0,90286.0,0.30596792]
[1765247705362,0.0063862,90287.0,90286.0,1.62416192]
[1765247705563,0.0063862,90287.0,90286.0,1.41029392]
[1765247705992,0.0023862,90287.0,90286.0,1.41029392]
[1765247706712,0.0270762,90287.0,90286.0,0.21177764]
[1765247707238,0.0013862,90287.0,90286.0,0.21177764]
[1765247707578,0.0003862,90287.0,90286.0,0.21177764]
[1765247707999,0.0033862,90287.0,90286.0,0.21177764]
[1765247708382,0.0013862,90287.0,90286.0,0.21177764]
[1765247708822,0.0023862,90287.0,90286.0,0.21177764]
[1765247709209,0.0128662,90287.0,90286.0,0.21177764]
[1765247711208,0.0013862,90287.0,90286.0,0.21177764]
[1765247712434,0.0013862,90287.0,90286.0,0.22177582]
[1765247713454,0.0003862,90287.0,90286.0,0.22177582]
[1765247713657,0.0003862,90287.0,90286.0,0.22277582]
[1765247714941,0.0527662,90287.0,90286.0,0.21277764]
[1765247715933,0.0283962,90287.0,90286.0,0.21177764]
[1765247716282,0.0126162,90287.0,90286.0,0.21877764]
[1765247716632,0.0126162,90287.0,90286.0,0.22077764]
[1765247717027,0.0126162,90287.0,90286.0,0.21377764]
[1765247717230,0.0126162,90287.0,90286.0,0.21177764]
[1765247717375,0.0156162,90287.0,90286.0,0.21177764]
[1765247717916,0.0033862,90287.0,90286.0,0.23376355]
[1765247718115,0.0033862,90287.0,90286.0,0.55676355]
[1765247719232,0.0023862,90287.0,90286.0,0.55676355]
[1765247719442,0.0003862,90287.0,90286.0,0.55676355]
[1765247719583,0.0013862,90287.0,90286.0,0.55676355]
[1765247720746,0.0136162,90287.0,90286.0,0.55676355]
[1765247721478,0.0013862,90287.0,90286.0,0.55676355]
[1765247724432,0.0013862,90287.0,90286.0,0.59748112]
[1765247725060,0.0537662,90287.0,90286.0,0.56333269]
[1765247725261,0.0537662,90287.0,90286.0,0.53477764]
[1765247727186,0.0013862,90287.0,90286.0,0.75629592]
[1765247727861,0.0013862,90287.0,90286.0,0.53477764]
[1765247728061,0.0293962,90287.0,90286.0,0.53477764]
[1765247729938,0.0013862,90287.0,90286.0,0.53477764]
[1765247730141,0.0013862,90287.0,90286.0,0.55676355]
[1765247731646,0.0013862,90287.0,90286.0,0.56783848]
[1765247732959,0.0013862,90287.0,90286.0,0.62729743]
[1765247734246,0.0013862,90287.0,90286.0,0.56783848]
[1765247740191,0.0013862,90287.0,90286.0,0.62738862]
[1765247742910,0.0013862,90287.0,90286.0,0.56783848]
[1765247743321,0.0013862,90287.0,90286.0,0.62739037]
[1765247743852,0.0013862,90287.0,90286.0,0.56783848]
[1765247744222,0.0013862,90287.0,90286.0,0.62736687]
[1765247747388,0.0013862,90287.0,90286.0,0.56783848]
[1765247754771,0.0013862,90287.0,90286.0,0.40583677]
[1765247754772,0.0512462,90287.0,90286.0,0.40583677]
[1765247755688,0.0502462,90287.0,90286.0,0.40583677]
[1765247756030,0.0502462,90287.0,90286.0,0.41383677]
[1765247756422,0.0502462,90287.0,90286.0,0.41183677]
[1765247756845,0.0502462,90287.0,90286.0,0.09083677]
[1765247757045,0.0502462,90287.0,90286.0,0.008]
[1765247757256,0.0502462,90287.0,90286.0,0.002]
[1765247757484,0.0502462,90287.0,90286.0,0.008]
[1765247760071,0.0502462,90287.0,90286.0,0.006]
[1765247760273,0.01107714,90276.0,90273.0,0.03971007]
[1765247760552,0.22154527,90275.0,90274.0,0.198895]
[1765247760696,0.24500527,90275.0,90274.0,0.198895]
[1765247760899,0.26015527,90275.0,90274.0,0.198895]
[1765247761293,0.22155018,90273.0,90272.0,0.44554684]
[1765247761500,0.23689018,90273.0,90272.0,0.323]
[1765247761715,0.26105018,90273.0,90272.0,0.323]
[1765247762450,0.26105018,90273.0,90272.0,0.450198]
[1765247762652,0.26105018,90273.0,90272.0,0.452198]
[1765247763162,0.22154773,90274.0,90273.0,0.98018991]
[1765247764568,0.23688773,90274.0,90273.0,0.913666]
[1765247764721,0.26104773,90274.0,90273.0,0.913666]
[1765247764925,0.26104773,90274.0,90273.0,0.915666]
[1765247766343,0.26104773,90274.0,90273.0,0.902512]
[1765247767168,0.26104773,90274.0,90273.0,0.871371]
[1765247767652,0.26104773,90274.0,90273.0,0.785493]
[1765247768270,0.26104773,90274.0,90273.0,0.783493]
[1765247768451,0.26104773,90274.0,90273.0,0.775493]
[1765247768654,0.26104773,90274.0,90273.0,0.777493]
[1765247769658,0.01534,90274.0,90273.0,0.781493]
[1765247769866,0.01107714,90276.0,90273.0,0.006]
[1765247770669,0.01107701,90277.0,90273.0,0.0170775]
[1765247770967,0.01107701,90277.0,90273.0,0.23423895]
[1765247771142,0.01107701,90277.0,90274.0,0.01107738]
[1765247771344,0.01125,90283.0,90277.0,0.22154037]
[1765247771516,0.01195,90301.0,90277.0,0.22154037]
[1765247771517,0.0003862,90287.0,90285.0,1.534737]
[1765247771718,0.0003862,90287.0,90286.0,1.317422]
[1765247772875,0.0003862,90287.0,90286.0,1.211448]
[1765247773546,0.0003862,90287.0,90286.0,1.214448]
[1765247773886,0.0003862,90287.0,90286.0,1.21306087]
[1765247774127,0.0003862,90287.0,90286.0,1.53606087]
[1765247774128,0.0043862,90287.0,90286.0,1.53606087]
[1765247774385,0.0043862,90287.0,90286.0,1.55804678]
[1765247774880,0.0063862,90287.0,90286.0,1.56999678]
[1765247775055,0.0043862,90287.0,90286.0,1.56999678]
[1765247775386,0.0053862,90287.0,90286.0,1.56999678]
[1765247775685,0.0013862,90287.0,90286.0,1.56999678]
[1765247776091,0.0043862,90287.0,90286.0,1.56999678]
[1765247776291,0.0013862,90287.0,90286.0,1.56999678]
[1765247776509,0.0003862,90287.0,90286.0,1.56999678]
[1765247776712,0.0043862,90287.0,90286.0,1.56999678]
[1765247777018,0.0053862,90287.0,90286.0,1.56999678]
[1765247781519,0.0053862,90287.0,90286.0,1.60954795]
[1765247783702,0.0053862,90287.0,90286.0,1.56999678]
[1765247785108,0.0053862,90287.0,90286.0,1.63251977]
[1765247785445,0.0013862,90287.0,90286.0,1.63251977]
[1765247785743,0.0033862,90287.0,90286.0,1.63251977]
[1765247785946,0.0043862,90287.0,90286.0,1.63251977]
[1765247786095,0.0013862,90287.0,90286.0,1.63251977]
[1765247786512,0.0003862,90287.0,90286.0,1.63251977]
[1765247786716,0.0003862,90287.0,90286.0,1.63351977]
[1765247789356,0.0003862,90287.0,90286.0,1.69280303]
[1765247791223,0.0003862,90287.0,90286.0,1.63351977]
[1765247792191,0.0003862,90287.0,90286.0,0.68325178]
[1765247792392,0.0003862,90287.0,90286.0,0.68591778]
[1765247793110,0.0003862,90287.0,90286.0,0.68491778]
[1765247793658,0.0023862,90287.0,90286.0,0.68491778]
[1765247795656,0.0023862,90287.0,90286.0,0.66743778]
[1765247795854,0.0023862,90287.0,90286.0,0.68491778]
[1765247796044,0.0023862,90287.0,90286.0,0.64545187]
[1765247796392,0.0023862,90287.0,90286.0,0.63797887]
[1765247796565,0.0023862,90287.0,90286.0,0.65996478]
[1765247799222,0.0023862,90287.0,90286.0,0.47378487]
[1765247799363,0.0023862,90287.0,90286.0,0.53306951]
[1765247800330,0.0023862,90287.0,90286.0,0.54306769]
[1765247800522,0.0023862,90287.0,90286.0,0.48378305]
[1765247803181,0.0023862,90287.0,90286.0,0.49577078]
[1765247803722,0.0023862,90287.0,90286.0,0.55829377]
[1765247803926,0.0023862,90287.0,90286.0,0.61719658]
[1765247804648,0.0023862,90287.0,90286.0,0.55829377]
[1765247805016,0.0003862,90287.0,90286.0,0.55829377]
[1765247805423,0.0003862,90287.0,90286.0,0.58626939]
[1765247805619,0.0003862,90287.0,90286.0,0.61819658]
[1765247806523,0.0003862,90287.0,90286.0,0.55929377]
[1765247807784,0.0003862,90287.0,90286.0,0.54181377]
[1765247807983,0.0003862,90287.0,90286.0,0.56029377]
[1765247809146,0.0003862,90287.0,90286.0,0.54281377]
[1765247809348,0.0003862,90287.0,90286.0,0.56029377]
[1765247810247,0.0003862,90287.0,90286.0,0.54281377]
[1765247810448,0.0003862,90287.0,90286.0,0.56029377]
[1765247811056,0.0003862,90287.0,90286.0,0.54281377]
[1765247811425,0.0003862,90287.0,90286.0,0.56029377]
[1765247812069,0.0003862,90287.0,90286.0,0.54281377]
[1765247812264,0.0003862,90287.0,90286.0,0.56029377]
[1765247812898,0.0003862,90287.0,90286.0,0.54281377]
[1765247813099,0.0003862,90287.0,90286.0,0.56029377]
[1765247813615,0.0003862,90287.0,90286.0,0.54281377]
[1765247813817,0.0003862,90287.0,90286.0,0.56029377]
[1765247815278,2.459e-05,90287.0,90286.0,0.71829483]
[1765247815485,2.459e-05,90287.0,90286.0,0.61919658]
[1765247816033,2.459e-05,90287.0,90286.0,0.61819658]
[1765247816217,2.459e-05,90287.0,90286.0,0.62019658]
[1765247816615,2.459e-05,90287.0,90286.0,0.61819658]
[1765247816856,2.459e-05,90287.0,90286.0,0.61719658]
[1765247817059,2.459e-05,90287.0,90286.0,0.62319658]
[1765247817591,2.459e-05,90287.0,90286.0,0.61719658]
[1765247817775,2.459e-05,90287.0,90286.0,0.62319658]
[1765247817923,2.459e-05,90287.0,90286.0,0.62519658]
[1765247818127,0.01156,90356.0,90324.0,0.22142509]
[1765247818331,0.02262745,90355.0,90324.0,2.64812962]
[1765247818544,0.01156,90341.0,90324.0,2.63064962]
[1765247818749,0.01156,90341.0,90324.0,2.64812962]
[1765247819253,0.01156,90341.0,90324.0,2.67075707]
[1765247820118,0.00552351,90325.0,90324.0,2.67075707]
[1765247821297,0.00552351,90325.0,90324.0,2.66876752]
[1765247821498,0.00552351,90325.0,90324.0,2.65128752]
[1765247821758,0.00552351,90325.0,90324.0,2.66876752]
[1765247821947,0.00552351,90325.0,90324.0,2.64791004]
[1765247822192,0.00552351,90325.0,90324.0,2.60624453]
[1765247822382,0.02163351,90325.0,90324.0,0.83146617]
[1765247822580,0.04588351,90325.0,90324.0,0.84894617]
[1765247822743,0.00552351,90325.0,90324.0,0.84894617]
[1765247822942,0.00552351,90325.0,90324.0,0.87093208]
[1765247829556,0.00552351,90325.0,90324.0,0.85345208]
[1765247829822,0.00552351,90325.0,90324.0,0.87093208]
[1765247832475,0.00552351,90325.0,90324.0,0.85345208]
[1765247832687,0.00552351,90325.0,90324.0,0.87093208]
[1765247837464,0.00552351,90325.0,90324.0,0.84894617]
[1765247838335,0.00552351,90325.0,90324.0,0.88837331]
[1765247838971,0.00552351,90325.0,90324.0,0.87089331]
[1765247839175,0.00552351,90325.0,90324.0,0.88837331]
[1765247840337,0.00552351,90325.0,90324.0,0.84894617]
[1765247843364,0.24236615,90325.0,90324.0,0.60842821]
[1765247843565,0.04511351,90325.0,90324.0,0.50950576]
[1765247843769,0.04511351,90325.0,90324.0,0.46995721]
[1765247843970,0.00552351,90325.0,90324.0,0.46995721]
[1765247844618,0.00652351,90325.0,90324.0,0.46995721]
[1765247844989,0.00552351,90325.0,90324.0,0.44732976]
[1765247845186,0.00252351,90325.0,90324.0,0.44732976]
[1765247845388,0.01052351,90325.0,90324.0,0.44732976]
[1765247846257,0.00252351,90325.0,90324.0,0.44732976]
[1765247846426,0.00452351,90325.0,90324.0,0.44732976]
[1765247846622,0.00952351,90325.0,90324.0,0.44732976]
[1765247846824,0.00752351,90325.0,90324.0,0.44732976]
[1765247847650,0.04711351,90325.0,90324.0,0.54084503]
[1765247847850,0.00752351,90325.0,90324.0,0.50123276]
[1765247848051,0.00952351,90325.0,90324.0,0.50123276]
[1765247848309,0.00452351,90325.0,90324.0,0.50123276]
[1765247848514,0.01152351,90325.0,90324.0,0.50123276]
[1765247848716,0.00452351,90325.0,90324.0,0.50123276]
[1765247849124,0.01252351,90325.0,90324.0,0.50123276]
[1765247849785,0.01052351,90325.0,90324.0,0.50123276]
[1765247850217,0.01252351,90325.0,90324.0,0.50123276]
[1765247851689,0.01252351,90325.0,90324.0,0.49118776]
[1765247855458,0.00452351,90325.0,90324.0,0.49118776]
[1765247855600,0.01052351,90325.0,90324.0,0.49118776]
[1765247856037,0.00852351,90325.0,90324.0,0.51317367]
[1765247856233,0.00952351,90325.0,90324.0,0.51317367]
[1765247857627,0.00952351,90325.0,90324.0,0.57231918]
[1765247859265,0.00952351,90325.0,90324.0,0.51317367]
[1765247859477,0.00952351,90325.0,90324.0,0.57257008]
[1765247859886,0.00952351,90325.0,90324.0,0.57418295]
[1765247860116,0.00952351,90325.0,90324.0,0.51478654]
[1765247860701,0.00852351,90325.0,90324.0,0.51478654]
[1765247860910,0.00252351,90325.0,90324.0,0.51478654]
[1765247861460,0.00552351,90325.0,90324.0,0.51478654]
[1765247862081,0.00552351,90325.0,90324.0,0.53226654]
[1765247866036,0.04432351,90325.0,90324.0,0.51028063]
[1765247866486,0.00552351,90325.0,90324.0,0.56968451]
[1765247866647,0.00552351,90325.0,90324.0,0.51028063]
[1765247866846,0.00552351,90325.0,90324.0,0.56967759]
[1765247868973,0.04432351,90325.0,90324.0,0.46710963]
[1765247869152,0.04432351,90325.0,90324.0,0.48458963]
[1765247869554,0.02137351,90325.0,90324.0,0.48458963]
[1765247872015,0.02137351,90325.0,90324.0,0.70601472]
[1765247872914,0.02137351,90325.0,90324.0,0.48458963]
[1765247873460,0.02137351,90325.0,90324.0,0.70601472]
[1765247873608,0.00552351,90325.0,90324.0,0.70601472]
[1765247876590,0.00552351,90325.0,90324.0,0.76541168]
[1765247878238,0.02137351,90325.0,90324.0,0.52650659]
[1765247878461,0.04432351,90325.0,90324.0,0.00010276]
[1765247878660,0.04432351,90325.0,90324.0,2.76e-06]
[1765247878887,0.22145206,90313.0,90312.0,0.03961544]
[1765247879085,0.23730206,90313.0,90312.0,0.03973164]
[1765247879410,0.27273206,90313.0,90312.0,0.0001162]
[1765247881112,0.27573206,90313.0,90312.0,0.0001162]
[1765247882694,0.01107603,90285.0,90282.0,0.03961544]
[1765247882894,0.2215281,90282.0,90281.0,0.08283677]
[1765247883114,0.2594781,90282.0,90281.0,0.08293937]
[1765247883355,0.2594781,90282.0,90281.0,0.18827637]
[1765247883493,0.2594781,90282.0,90281.0,0.19978537]
[1765247883704,0.03795,90282.0,90281.0,0.19978537]
[1765247884117,0.03795,90282.0,90281.0,0.20178537]
[1765247884494,0.2594781,90282.0,90281.0,0.08493937]
[1765247884957,0.2594781,90282.0,90281.0,0.08593937]
[1765247885112,0.2594781,90282.0,90281.0,0.19991937]
[1765247886241,0.2594781,90282.0,90281.0,0.08593937]
[1765247886611,0.2594781,90282.0,90281.0,0.0031026]
[1765247887340,0.2594781,90282.0,90281.0,0.0001026]
[1765247887887,0.2604781,90282.0,90281.0,0.0001026]
[1765247888040,0.2594781,90282.0,90281.0,0.0001026]
[1765247888218,0.2854781,90282.0,90281.0,0.0001026]
[1765247888561,0.2634781,90282.0,90281.0,0.0001026]
[1765247889224,0.2644781,90282.0,90281.0,0.0001026]
[1765247895885,0.0449,90282.0,90281.0,0.0001026]
[1765247896086,0.07259101,90282.0,90281.0,0.0001026]
[1765247896519,0.0449,90282.0,90281.0,0.0001026]
[1765247898099,0.2664281,90282.0,90281.0,0.0001026]
[1765247900528,0.0449,90282.0,90281.0,0.0001026]
[1765247901575,0.07259101,90282.0,90281.0,0.0001026]
[1765247901800,0.0449,90282.0,90281.0,0.0001026]
[1765247902810,0.07043551,90282.0,90281.0,0.0001026]
[1765247902966,0.0449,90282.0,90281.0,0.0001026]
[1765247904703,0.06113283,90282.0,90281.0,0.0001026]
[1765247904908,0.14649356,90282.0,90281.0,0.0001026]
[1765247905242,0.14649356,90282.0,90250.0,0.54916015]
[1765247905243,0.01107971,90255.0,90252.0,0.01108008]
[1765247905460,0.22159126,90257.0,90253.0,0.11876]
[1765247905461,0.23267321,90256.0,90253.0,0.11876]
[1765247905648,0.02725,90253.0,90252.0,0.0003862]
[1765247905853,0.24884928,90253.0,90252.0,0.0003862]
[1765247906011,0.05193,90253.0,90252.0,0.0003862]
[1765247906213,0.05193,90253.0,90252.0,0.2829982]
[1765247906414,0.05193,90253.0,90252.0,0.1566022]
[1765247906741,0.05193,90253.0,90252.0,0.1348062]
[1765247907113,0.05193,90253.0,90252.0,0.1378062]
[1765247907319,0.27352928,90253.0,90252.0,0.1348062]
[1765247907516,0.27352928,90253.0,90252.0,0.0023862]
[1765247907720,0.27352928,90253.0,90252.0,0.0013862]
[1765247908133,0.27352928,90253.0,90252.0,0.0023862]
[1765247908529,0.27352928,90253.0,90252.0,0.0013862]
[1765247908844,0.27352928,90253.0,90252.0,0.0023862]
[1765247909047,0.27352928,90253.0,90252.0,0.0013862]
[1765247909258,0.27352928,90253.0,90252.0,0.0033862]
[1765247910242,0.05193,90253.0,90252.0,0.0033862]
[1765247911082,0.02725,90253.0,90252.0,0.0033862]
[1765247911284,0.05193,90253.0,90252.0,0.0033862]
[1765247912112,0.02725,90253.0,90252.0,0.22498793]
[1765247912610,0.05193,90253.0,90252.0,0.22498793]
[1765247915299,0.05193,90253.0,90252.0,0.0033862]
[1765247916198,0.27352928,90253.0,90252.0,0.0033862]
[1765247916408,0.05193,90253.0,90252.0,0.0033862]
[1765247918190,0.27352928,90253.0,90252.0,0.0033862]
[1765247919581,0.05193,90253.0,90252.0,0.0033862]
[1765247921715,0.01181,90253.0,90252.0,0.0033862]
[1765247921926,0.01181,90263.0,90262.0,0.01107885]
[1765247922331,0.05193,90263.0,90262.0,0.01107885]
[1765247922891,0.02725,90263.0,90262.0,0.01107885]
[1765247923090,0.01181,90265.0,90262.0,0.01107885]
[1765247923091,0.01181,90265.0,90263.0,0.22157473]
[1765247923289,0.23262556,90274.0,90270.0,0.22155719]
[1765247923514,0.23262556,90274.0,90269.0,0.011078]
[1765247923515,0.01107738,90274.0,90269.0,0.23263748]
[1765247923714,0.01107738,90274.0,90270.0,0.22155567]
[1765247924041,0.01107738,90274.0,90269.0,0.23263748]
[1765247924390,0.01281,90272.0,90269.0,0.23263748]
[1765247924791,0.01181,90272.0,90271.0,0.22155509]
[1765247925229,0.01281,90272.0,90271.0,0.22155509]
[1765247925434,0.01281,90272.0,90269.0,0.23263748]
[1765247925435,0.01481,90272.0,90269.0,0.23263748]
[1765247925655,0.02781,90272.0,90269.0,0.23263748]
[1765247926059,0.02981,90272.0,90269.0,0.23263748]
[1765247926487,0.02781,90272.0,90271.0,0.22155509]
[1765247926691,0.003,90272.0,90271.0,1.81587909]
[1765247926845,0.002,90272.0,90271.0,1.81587909]
[1765247927061,0.002,90272.0,90271.0,1.81749196]
[1765247927246,0.003,90272.0,90271.0,1.81749196]
[1765247927448,0.003,90272.0,90271.0,1.83947787]
[1765247928132,0.001,90272.0,90271.0,1.83947787]
[1765247928571,0.003,90272.0,90271.0,1.83947787]
[1765247930212,0.003,90272.0,90271.0,1.79100787]
[1765247930438,0.003,90272.0,90271.0,1.77745787]
[1765247930657,0.003,90272.0,90271.0,1.57555987]
[1765247933124,0.003,90272.0,90271.0,1.53931987]
[1765247934847,0.003,90272.0,90271.0,1.40789687]
[1765247935387,0.003,90272.0,90271.0,1.39139387]
[1765247935592,0.04083,90272.0,90271.0,0.19869787]
[1765247937738,0.04083,90272.0,90271.0,0.18559187]
[1765247940169,0.05315,90272.0,90271.0,0.18559187]
[1765247940747,0.01532,90272.0,90271.0,0.18559187]
[1765247941488,0.0566,90272.0,90271.0,0.18559187]
[1765247943320,0.03173,90272.0,90271.0,0.18559187]
[1765247943759,0.0566,90272.0,90271.0,0.18559187]
[1765247945567,0.0566,90272.0,90271.0,0.40714696]
[1765247946436,0.03173,90272.0,90271.0,0.40714696]
[1765247946715,0.0566,90272.0,90271.0,0.40714696]
[1765247947122,0.003,90272.0,90271.0,0.40714696]
[1765247947316,0.003,90272.0,90271.0,0.74014514]
[1765247947512,0.003,90272.0,90271.0,0.75246514]
[1765247947899,0.003,90272.0,90271.0,0.81498813]
[1765247948442,0.001,90272.0,90271.0,0.83246813]
[1765247948619,0.001,90272.0,90271.0,0.83446813]
[1765247949228,0.01135,90285.0,90284.0,1.64258119]
[1765247949428,0.01135,90285.0,90284.0,1.66006119]
[1765247949910,0.01135,90285.0,90284.0,1.69331897]
[1765247950463,0.01145692,90285.0,90284.0,1.69331897]
[1765247950665,0.01545692,90285.0,90284.0,1.69331897]
[1765247951027,0.01745692,90285.0,90284.0,1.69331897]
[1765247951232,0.01745692,90285.0,90284.0,1.45043897]
[1765247951857,0.05873692,90285.0,90284.0,0.91404197]
[1765247952170,0.05873692,90285.0,90282.0,0.23260253]
[1765247952171,0.05873692,90285.0,90283.0,0.5167622]
[1765247952357,0.01745692,90285.0,90284.0,0.321982]
[1765247952778,0.03407692,90285.0,90284.0,0.321982]
[1765247952957,0.03407692,90285.0,90284.0,0.188798]
[1765247952958,0.05246692,90285.0,90284.0,0.188798]
[1765247953137,0.05246692,90285.0,90283.0,0.237572]
[1765247953336,0.02439,90284.0,90283.0,0.237572]
[1765247953560,0.04101,90284.0,90283.0,0.237572]
[1765247954787,0.04501,90284.0,90283.0,0.237572]
[1765247955772,0.04601,90284.0,90283.0,0.237572]
[1765247959384,0.02162,90284.0,90283.0,0.237572]
[1765247959822,0.04601,90284.0,90283.0,0.237572]
[1765247961626,0.02162,90284.0,90283.0,0.237572]
[1765247961833,0.005,90284.0,90283.0,0.237572]
[1765247962395,0.005,90284.0,90283.0,0.24902892]
[1765247964625,0.005,90284.0,90283.0,0.27101483]
[1765247965262,0.02162,90284.0,90283.0,0.27101483]
[1765247967009,0.02162,90284.0,90283.0,0.25955791]
[1765247967305,0.005,90284.0,90283.0,0.25955791]
[1765247967854,0.04601,90284.0,90283.0,0.237572]
[1765247968277,0.04601,90284.0,90281.0,0.261163]
[1765247968278,0.26753319,90284.0,90281.0,0.261163]
[1765247968492,0.26753319,90284.0,90271.0,0.23424389]
[1765247968493,0.221533,90280.0,90275.0,0.03958075]